[Event "Romanian Superleague 2022"]
[Site "Oradea"]
[Date "2022.09.29"]
[Round "9.21"]
[White "Mendonca, Leon Luke"]
[Black "Jianu, Vlad-Cristian"]
[Result "1/2-1/2"]
[ECO "D37"]
[WhiteElo "2558"]
[BlackElo "2511"]
[Annotator "TA"]
[PlyCount "92"]
[EventDate "2022.09.21"]
[EventType "team-tourn"]
[EventCountry "ROU"]
[SourceTitle "playchess.com"]
[Source "ChessBase"]
[SourceQuality "1"]
[TimeControl "40/5400+30:1800+30"]

{[%evp 9,92,17,18,27,27,11,17,25,30,24,24,23,24,16,36,17,14,25,22,18,18,8,24,22,31,20,31,20,15,0,0,0,0,0,0,-8,0,-10,0,0,0,0,0,0,0,0,0,0,14,0,26,0,0,-8,0,0,0,0,9,-1,0,0,0,0,0,0,0,0,0,0,0,0,0,0,0,0,0,0,0,0,0,0,0,0,0]} 1. d4 {[%emt 0:00:08]} Nf6 {[%emt 0:00:06]} 2. c4 {[%emt 0:00:21]} e6 {[%emt 0:00:06]} 3. Nf3 {[%emt 0:00:15]} d5 {[%emt 0:00:07]} 4. Nc3 {[%emt 0:00:05]} a6 {[%emt 0:00:41]} 5. cxd5 {[%emt 0:00:06]} exd5 {[%emt 0:00:06]} 6. Bg5 {[%emt 0:00:15] D37: Queen's Gambit Declined: 5 Bf4.} Be6 {[%emt 0:00:07]} 7. Qb3 {[%emt 0:00:27]} Nbd7 {[%emt 0:15:48]} 8. e3 {[%emt 0:00:30]} Rb8 {[%emt 0:03:49]} 9. Ne5 {[%emt 0:01:37]} Be7 {[%emt 0:07:12]} 10. Nxd7 {[%emt 0:00:43]} Nxd7 {[%emt 0:00:32]} 11. Bf4 {[%emt 0:00:17] [#]} Bg5 $146 {[%emt 0:03:29]} ({Predecessor:} 11... Nf6 12. h3 O-O 13. Bd3 Bd6 14. Bxd6 Qxd6 15. O-O Qe7 16. Qc2 Rfe8 17. Na4 c6 {0-1 (55) Yoo,C (2479)-Sadhwani,R (2555) Chess.com INT 2021}) 12. Bg3 {[%emt 0:06:13]} (12. Nxd5 $2 Bxf4 13. Bc4 (13. exf4 $2 Nb6 $19) 13... Bd6 $19) 12... Bh4 {[%emt 0:01:36]} 13. Bxh4 {[%emt 0:05:55]} ({Don't blunder} 13. Nxd5 $2 Bxg3 14. hxg3 c6 $19) 13... Qxh4 {[%emt 0:00:08]} 14. Qc2 {[%emt 0:02:32]} ({Wrong is} 14. Nxd5 $2 O-O 15. Rc1 Nb6 $19) 14... O-O {[%emt 0:05:06]} 15. Bd3 {[%emt 0:16:51]} h6 {[%emt 0:04:12]} 16. O-O {[%emt 0:00:32]} Qe7 {[%emt 0:04:05]} 17. Ne2 {[%emt 0:10:44]} Nf6 {[%emt 0:05:33][%cal Bd7f6,Bf6e8,Be8d6][%mdl 32]} 18. Rfc1 {[%emt 0:10:38]} c6 {[%emt 0:01:05]} 19. Qd2 {[%emt 0:14:53]} Ne8 {[%emt 0:03:19]} 20. Nc3 {[%emt 0:03:06]} Nd6 {[%emt 0:02:39]} 21. Na4 {[%emt 0:00:04]} Bf5 {[%emt 0:00:27]} 22. Bf1 {[%emt 0:01:29]} Rfe8 {[%emt 0:12:30][%cal Bf8e8,Be8e6,Be6f6][%mdl 32]} 23. Nc5 {[%emt 0:01:26]} Ne4 {[%emt 0:00:11]} 24. Qe1 {[%emt 0:08:33]} Nxc5 {[%emt 0:11:43]} 25. Rxc5 {[%emt 0:00:04]} Qg5 {[%emt 0:00:44]} 26. b4 {[%emt 0:01:05]} Re6 {[%emt 0:04:21]} 27. a4 {[%emt 0:01:33]} Be4 {[%emt 0:00:39]} 28. Qe2 {[%emt 0:08:04]} Rbe8 {[%emt 0:06:09]} 29. Rc3 {[%emt 0:01:00]} (29. b5 {is interesting.} Rg6 30. g3 axb5 31. axb5 h5 32. bxc6 bxc6 33. Rac1) 29... Rf6 {[%emt 0:01:46]} 30. Kh1 {[%emt 0:01:42]} Rg6 {[%emt 0:03:00][%cal Re4g2] The position is equal.} 31. f3 {[%emt 0:01:03]} Bf5 {[%emt 0:00:01]} 32. Qf2 {[%emt 0:01:06]} Rge6 {[%emt 0:00:54][%cal Re6e3]} 33. Raa3 {[%emt 0:01:10]} h5 {[%emt 0:01:06]} 34. h4 {[%emt 0:01:30]} Qh6 {[%emt 0:00:40]} 35. b5 {[%emt 0:00:20]} axb5 {[%emt 0:00:06]} 36. axb5 {[%emt 0:00:00]} Kh7 {[%emt 0:01:18]} 37. Ra7 {[%emt 0:02:01]} Rxe3 38. Rxe3 {[%emt 0:00:00]} Qxe3 {[%emt 0:00:36]} 39. Qxe3 Rxe3 $11 {[%emt 0:00:01][%mdl 4096] Endgame KRB-KRB} 40. Kg1 $1 {[%emt 0:00:00]} ({Much worse is} 40. bxc6 bxc6 41. Kg1 Kg6 $15) 40... cxb5 {[%emt 0:00:00]} 41. Rxb7 {[%emt 0:03:07]} Re1 {[%emt 0:14:14] [#] Threatens to win with ...Bd3.} 42. Kf2 {[%emt 0:01:20]} Rd1 {[%emt 0:00:53]} 43. Rxf7 {[%emt 0:02:31]} Bg6 {[%emt 0:01:45]} 44. Rb7 {[%emt 0:01:29]} Rxd4 {[%emt 0:02:01]} 45. Rxb5 {[%emt 0:00:24]} Rxh4 {[%emt 0:00:11]} 46. Rxd5 {[%emt 0:00:24]} Ra4 {[%emt 0:18:28] A balanced but interesting game.  Weighted Error Value: White=0.04 (flawless) /Black=0.03 (flawless)} 1/2-1/2

[Event "Romanian Superleague 2022"]
[Site "Oradea"]
[Date "2022.09.29"]
[Round "9.22"]
[White "Parligras, Mircea-Emilian"]
[Black "Ghimpu, Samuel-Timotei"]
[Result "1/2-1/2"]
[ECO "D24"]
[WhiteElo "2560"]
[BlackElo "2434"]
[Annotator "TA"]
[PlyCount "82"]
[EventDate "2022.09.21"]
[EventType "team-tourn"]
[EventCountry "ROU"]
[SourceTitle "playchess.com"]
[Source "ChessBase"]
[SourceQuality "1"]
[TimeControl "40/5400+30:1800+30"]

{[%evp 9,82,13,0,0,0,0,0,0,-14,0,0,0,79,16,16,0,0,0,58,27,27,31,31,13,9,0,0,0,0,0,0,0,0,-42,-21,-43,-47,-56,0,-52,-55,-44,-51,-45,-32,-31,-8,-8,-11,-28,-8,-8,-8,-132,0,0,0,-123,-122,-121,-120,-138,-128,-226,-181,-203,-209,-201,0,-11,-8,-8,-8,-8,-2]} 1. d4 {[%emt 0:00:04]} Nf6 {[%emt 0:00:15]} 2. c4 {[%emt 0:00:06]} e6 {[%emt 0:00:08]} 3. Nf3 {[%emt 0:00:12]} d5 {[%emt 0:00:08]} 4. Nc3 {[%emt 0:00:08]} dxc4 {[%emt 0:00:05]} 5. e4 {[%emt 0:00:24]} Bb4 {[%emt 0:00:08]} 6. Bxc4 {[%emt 0:00:39] D24: Queen's Gambit Accepted: 3 Nf3 Nf6 4 Nc3.} Nxe4 {[%emt 0:00:04]} 7. O-O {[%emt 0:00:09]} Nxc3 {[%emt 0:00:02]} 8. bxc3 {[%emt 0:00:10][%cal Bb2c3,Bc3d4,Bd4d5][%mdl 32]} ({Much weaker is} 8. Qb3 Nd5 9. Bxd5 Qxd5 $17) 8... Be7 {[%emt 0:00:02]} 9. Qe2 {[%emt 0:01:27]} O-O {[%emt 0:00:11]} 10. Rd1 {[%emt 0:00:29]} c5 {[%emt 0:00:04] [#]} (10... Nd7 $11) 11. Bf4 $146 {[%emt 0:05:24] White is much more active.} (11. d5 $1 $16 {[%cal Rd5e6]} exd5 12. Bxd5 (12. Rxd5 Qe8 $14)) ({Predecessor:} 11. d5 e5 12. d6 Bxd6 13. Ng5 Bf5 14. Qf3 Qd7 15. Rxd6 Qxd6 16. Qxf5 Qd1+ 17. Bf1 {1-0 (54) Adhiban,B (2659)-Sarana,A (2654) Chess.com INT 2020}) 11... cxd4 {[%emt 0:01:26]} 12. cxd4 {[%emt 0:02:01]} Bf6 {[%emt 0:20:07]} 13. d5 {[%emt 0:26:41][%cal Rd5e6] Against Nc6} e5 {[%emt 0:10:51]} (13... Bxa1 $2 14. dxe6 Qxd1+ 15. Qxd1 Bxe6 16. Bxe6 fxe6 17. Bxb8 $18) (13... Qe8 $11) 14. Bxe5 {[%emt 0:05:32]} Bg4 $1 {[%emt 0:00:11]} 15. Bxf6 {[%emt 0:07:46]} Qxf6 {[%emt 0:00:27]} 16. Rab1 {[%emt 0:04:29]} Nd7 {[%emt 0:03:08][%cal Bb8d7,Bd7b6,Bb6c8,Bc8d6][%mdl 32]} 17. Re1 {[%emt 0:14:13]} (17. d6 {with more complications.} Rae8 18. Qb2 Ne5 19. d7) 17... Nb6 {[%emt 0:15:18]} 18. Bb3 {[%emt 0:00:20]} Bxf3 {[%emt 0:00:24]} 19. Qxf3 {[%emt 0:00:45]} Qxf3 {[%emt 0:00:05]} 20. gxf3 {[%emt 0:00:05]} Nc8 {[%emt 0:00:04] Prevents Re7.} 21. Rbc1 {[%emt 0:05:22][%cal Od5d6]} (21. d6 $5) 21... Nd6 {[%emt 0:02:28]} 22. Re7 {[%emt 0:03:06]} Rfd8 {[%emt 0:00:50]} 23. Rcc7 {[%emt 0:00:41]} a5 {[%emt 0:01:58]} ({Better is} 23... Kf8 $15) 24. a4 {[%emt 0:05:56]} (24. Bc2 $11) 24... Ra6 $15 {[%emt 0:06:41]} 25. Bc4 {[%emt 0:01:10]} Rb6 {[%emt 0:01:03]} 26. Bb5 {[%emt 0:01:21]} g6 {[%emt 0:01:10]} 27. Kg2 {[%emt 0:03:43]} Rf8 {[%emt 0:12:26]} 28. Rc5 {[%emt 0:04:55]} Nxb5 {[%emt 0:14:15]} 29. axb5 $11 {[%emt 0:03:02][%mdl 4096] Endgame KRR-KRR} Rd8 {[%emt 0:06:49]} 30. Rcc7 {[%emt 0:01:01]} Rf6 {[%emt 0:00:30]} 31. Rc5 {[%emt 0:01:27]} (31. Rxb7 $11 Rxd5 32. h4) 31... Rb6 {[%emt 0:03:40]} 32. Rcc7 {[%emt 0:00:06][%csl LRb7,LRf7]} Rf6 {[%emt 0:00:22]} 33. Rc5 {[%emt 0:00:05] [#]} b6 $1 {[%emt 0:00:53]} 34. Rc6 {[%emt 0:00:06]} Kg7 {[%emt 0:00:04]} 35. Rb7 {[%emt 0:00:39]} Rxd5 {[%emt 0:00:28]} 36. Rxf6 {[%emt 0:00:08]} (36. Rcxb6 $17 Rg5+ 37. Kf1) 36... Kxf6 $19 {[%emt 0:00:02]} 37. Rxb6+ $17 {[%emt 0:00:06] KR-KR} Ke5 {[%emt 0:01:38]} 38. Rb7 {[%emt 0:01:00]} Kf6 $2 {[%emt 0:00:26]} (38... Kd4 $19 {Threatens to win with ...Kc5.} 39. f4 Kc5) 39. b6 {[%emt 0:00:15] The position is equal.} Rb5 {[%emt 0:00:06]} 40. Ra7 {[%emt 0:00:00]} Rxb6 {[%emt 0:00:00] Strongly threatening ...Rb5.} 41. Rxa5 {[%emt 0:00:18]} h5 {[%emt 0:00:11] Weighted Error Value: White=0.19 (very precise) /Black=0.18 (very precise)} 1/2-1/2

[Event "Romanian Superleague 2022"]
[Site "Oradea"]
[Date "2022.09.29"]
[Round "9.23"]
[White "David, Alexandru-Vasile"]
[Black "Gavrilescu, David"]
[Result "1/2-1/2"]
[ECO "B12"]
[WhiteElo "2417"]
[BlackElo "2523"]
[Annotator "TA"]
[PlyCount "96"]
[EventDate "2022.09.21"]
[EventType "team-tourn"]
[EventCountry "ROU"]
[SourceTitle "playchess.com"]
[Source "ChessBase"]
[SourceQuality "1"]
[TimeControl "40/5400+30:1800+30"]

{[%evp 9,96,16,10,9,12,11,12,2,17,0,8,0,20,0,0,0,1,0,0,0,0,0,0,0,0,-11,0,0,0,-4,0,0,0,0,8,0,0,0,0,0,0,0,0,-12,-10,-18,-14,-18,-47,-4,-36,-63,0,0,0,-51,0,-12,0,-62,-62,-110,-110,-110,-110,-113,-111,-113,-113,-212,-204,-196,-202,-207,-178,-203,-203,-248,-214,-378,-375,-460,-409,-416,-376,-472,0,0,0]} 1. e4 {[%emt 0:01:06]} c6 {[%emt 0:00:25]} 2. d4 {[%emt 0:00:39]} d5 {[%emt 0:00:19]} 3. e5 {[%emt 0:00:38]} Bf5 {[%emt 0:00:18]} 4. h4 {[%emt 0:00:45]} h5 {[%emt 0:00:23]} 5. Bd3 {[%emt 0:00:21]} Bxd3 {[%emt 0:00:41]} 6. Qxd3 {[%emt 0:00:06][%cal Oe5e6] B12: Caro-Kann: Advance Variation.} Qa5+ {[%emt 0:00:57]} 7. Nd2 {[%emt 0:00:14][%cal Oe5e6] Threatens to win with e6!} e6 {[%emt 0:00:38]} 8. Ngf3 {[%emt 0:00:11]} Nh6 {[%emt 0:01:31]} 9. O-O {[%emt 0:02:44]} Nf5 {[%emt 0:00:11]} 10. Nb3 {[%emt 0:03:36]} Qb5 {[%emt 0:00:34]} 11. Qd1 {[%emt 0:00:06]} c5 {[%emt 0:00:30]} 12. a4 {[%emt 0:00:21]} Qb6 {[%emt 0:00:21]} 13. dxc5 {[%emt 0:12:54]} Bxc5 {[%emt 0:00:08]} 14. Nxc5 {[%emt 0:00:03]} Qxc5 {[%emt 0:00:07]} 15. c3 {[%emt 0:00:17]} Nc6 {[%emt 0:00:11]} 16. Re1 {[%emt 0:02:05]} Rc8 {[%emt 0:01:51] [#]} 17. Qd3 $146 {[%emt 0:12:39]} ({Predecessor:} 17. Bf4 Nce7 18. g3 a5 19. Rc1 Qb6 20. b3 Rc6 21. Bg5 Qc7 22. Bd2 Ng6 23. Kg2 {½-½ (56) Elsness,F (2464)-Ostmoe,G (2483) Kongsvinger 2022}) 17... Nce7 {[%emt 0:15:16]} 18. Qb5+ {[%emt 0:08:43]} Qc6 {[%emt 0:00:41]} 19. Bg5 {[%emt 0:00:07]} a6 {[%emt 0:06:41]} 20. Qe2 {[%emt 0:00:09]} Qb6 {[%emt 0:06:48]} 21. a5 {[%emt 0:07:19]} Qc7 {[%emt 0:05:36]} 22. Bxe7 {[%emt 0:05:13]} Qxe7 {[%emt 0:03:54]} 23. Ra4 $1 {[%emt 0:00:29]} Rc5 {[%emt 0:03:20]} 24. Rea1 {[%emt 0:05:54]} g6 {[%emt 0:05:20]} 25. g3 {[%emt 0:03:27]} O-O {[%emt 0:03:11][%cal Bh8f8,Bf8c8,Bc8c5][%mdl 32]} 26. Kg2 {[%emt 0:03:36]} Rfc8 {[%emt 0:03:20]} 27. Rf4 {[%emt 0:08:29]} Rc4 {[%emt 0:05:36] Strongly threatening ...Rxf4.} 28. Ra4 {[%emt 0:00:41]} Rxf4 {[%emt 0:02:03]} 29. Rxf4 {[%emt 0:00:06]} Rc5 {[%emt 0:00:37]} 30. Ra4 {[%emt 0:06:07]} Qd8 {[%emt 0:09:35]} (30... Qd7 $1 $15 31. Qd1 Qc6) 31. Rb4 $11 {[%emt 0:00:32]} Qe7 {[%emt 0:00:26]} (31... Qc7 $11) 32. Ra4 $15 {[%emt 0:00:30]} Qd8 {[%emt 0:09:37]} 33. Rb4 {[%emt 0:00:06]} Qe7 {[%emt 0:00:05]} 34. Nd4 {[%emt 0:07:11]} (34. Ra4 $11) 34... Nxd4 {[%emt 0:01:11]} ({Reject} 34... Rxa5 35. Nxf5 exf5 36. Rb6 $11) 35. Rxd4 {[%emt 0:00:17]} (35. cxd4 $15 {is more appropriate.} Rxa5 36. Qd2) 35... Rxa5 {[%emt 0:00:11][%mdl 4096] Endgame KQR-KQR} 36. Qd2 {[%emt 0:00:04]} Rc5 {[%emt 0:01:39]} 37. g4 {[%emt 0:01:24]} hxg4 {[%emt 0:05:48]} (37... Qxh4 $2 38. g5 Qxd4 39. Qxd4 $18) 38. Rxg4 {[%emt 0:01:12] [#]} Rc4 $1 {[%emt 0:00:49]} 39. f4 {[%emt 0:03:01]} (39. Rxc4 $17 dxc4 40. Qg5) 39... Kf8 $19 {[%emt 0:07:19]} 40. h5 {[%emt 0:00:00]} gxh5 {[%emt 0:00:00]} 41. Rg5 {[%emt 0:00:55]} Ke8 {[%emt 0:12:09]} 42. Qf2 {[%emt 0:01:51] [#]} Qc5 $1 {[%emt 0:02:28]} 43. Rg8+ {[%emt 0:07:35]} Kd7 {[%emt 0:01:38] White must now prevent ...Qxf2+.} 44. Qh4 {[%emt 0:00:45]} (44. Qxc5 Rxc5 45. Kh3) 44... Qb6 {[%emt 0:05:23]} 45. b3 {[%emt 0:06:52]} Rxc3 {[%emt 0:06:41] aiming for ...Rc2+.} 46. Qf6 {[%emt 0:00:04]} Rc2+ {[%emt 0:00:41]} 47. Kh3 {[%emt 0:00:05]} Rc3+ $2 {[%emt 0:02:49]} (47... Qe3+ $19 48. Rg3 Qe4 49. Qxf7+ Kc6) 48. Kg2 $11 {[%emt 0:00:23] Chess con chili.} Rc2+ {[%emt 0:02:10] Weighted Error Value: White=0.22 (precise) /Black=0.30} 1/2-1/2

[Event "Romanian Superleague 2022"]
[Site "Oradea"]
[Date "2022.09.29"]
[Round "9.24"]
[White "Costachi, Mihnea"]
[Black "Berescu, Alin-Mile"]
[Result "1-0"]
[ECO "D27"]
[WhiteElo "2470"]
[BlackElo "2440"]
[Annotator "TA"]
[PlyCount "59"]
[EventDate "2022.09.21"]
[EventType "team-tourn"]
[EventCountry "ROU"]
[SourceTitle "playchess.com"]
[Source "ChessBase"]
[SourceQuality "1"]
[TimeControl "40/5400+30:1800+30"]

{[%evp 24,59,0,0,0,0,0,0,0,0,11,3,240,241,472,348,598,575,566,458,467,482,465,460,446,236,450,449,571,485,3031,3087,1537,472,920,916,922,896]} 1. d4 {[%emt 0:00:07]} d5 {[%emt 0:00:49]} 2. c4 {[%emt 0:00:17]} dxc4 {[%emt 0:00:45]} 3. Nf3 {[%emt 0:02:35]} Nf6 {[%emt 0:00:16]} 4. e3 {[%emt 0:00:03]} e6 {[%emt 0:00:35]} 5. Bxc4 {[%emt 0:00:04]} a6 {[%emt 0:01:03]} 6. a4 {[%emt 0:11:37]} c5 {[%emt 0:00:56]} 7. O-O {[%emt 0:00:24]} Nc6 {[%emt 0:00:43]} 8. Qe2 {[%emt 0:06:39]} cxd4 {[%emt 0:08:02]} 9. Rd1 {[%emt 0:00:21]} Be7 {[%emt 0:01:54]} 10. exd4 {[%emt 0:02:37]} O-O {[%emt 0:00:41]} 11. Nc3 {[%emt 0:00:09]} Nb4 {[%emt 0:13:44]} 12. Ne5 {[%emt 0:11:44]} b6 {[%emt 0:03:17]} 13. Qf3 {[%emt 0:03:06]} Ra7 {[%emt 0:10:37] D27: Queen's Gambit Accepted: Classical main line: 7 e4!? and 7 a4.} 14. Qg3 {[%emt 0:06:24]} Bb7 {[%emt 0:09:57]} 15. Bh6 {[%emt 0:13:36][%csl Gh6][%cal Rg3g7] [#]} Ne8 {[%emt 0:00:23] [#] The position is equal.} ({Don't play} 15... Nh5 16. Qg4 $16) 16. Bf4 $146 {[%emt 0:06:03]} ({Predecessor:} 16. Bb3 Ra8 17. Rac1 Kh8 18. Bf4 Nf6 19. Qh3 Kg8 20. Bg5 Ne4 21. Nxe4 Bxe4 22. Bd2 {½-½ (31) Khademalsharieh,S (2489)-Huang,Q (2443) China 2019}) 16... Nd6 {[%emt 0:06:29]} 17. d5 {[%emt 0:03:08]} ({Avoid the trap} 17. Bh6 $2 Nf5 18. Qf4 Nxh6 $19) 17... Nxc4 $2 {[%emt 0:14:22] [#]} (17... Bh4 $11 18. Qg4 Nxc4 19. Nxc4 Nxd5) 18. dxe6 $1 $40 {[%emt 0:04:31][%mdl 128] Black is in trouble. Really sharp!} Qc8 $2 {[%emt 0:18:30]} (18... Bd5 {was called for.}) 19. Bh6 {[%emt 0:01:28][%csl Gh6][%cal Rg3g7]} g6 {[%emt 0:02:22]} (19... Bf6 20. Nd7 Qd8) 20. exf7+ {[%emt 0:09:30]} (20. Rd7 Nxe5 21. Rxe7 (21. Qxe5 f6 $11) 21... f6 $16) 20... Rxf7 {[%emt 0:00:05]} 21. Nxg6 {[%emt 0:00:03][%mdl 64] Demolition} hxg6 {[%emt 0:00:07]} 22. Qxg6+ {[%emt 0:00:06]} Kh8 {[%emt 0:00:03]} 23. Qxf7 {[%emt 0:00:17][%csl Gh6][%cal Rf7g7]} Qg8 {[%emt 0:00:04] Against Qg7+} 24. Qxg8+ {[%emt 0:00:14]} Kxg8 {[%emt 0:00:03]} 25. Rd7 {[%emt 0:00:07] White is clearly winning.} Nc6 {[%emt 0:01:32]} 26. Re1 {[%emt 0:00:41]} Bf8 {[%emt 0:02:30]} (26... N4e5 $142) 27. Re8 {[%emt 0:00:40][%csl Gh6][%cal Re8f8]} Ra8 {[%emt 0:00:11]} 28. Rxf8+ {[%emt 0:00:25]} Rxf8 {[%emt 0:00:05]} 29. Bxf8 {[%emt 0:00:15]} Bc8 {[%emt 0:00:25]} 30. Rc7 {[%emt 0:00:06][%csl LRc6,LRc8] White took control after the opening.  Weighted Error Value: White=0.78/Black=1.12} 1-0

[Event "Romanian Superleague 2022"]
[Site "Oradea"]
[Date "2022.09.29"]
[Round "9.25"]
[White "Miron, Lucian-Costin"]
[Black "Dobre, Claudiu-Cristian"]
[Result "1/2-1/2"]
[ECO "E07"]
[WhiteElo "2498"]
[BlackElo "2268"]
[Annotator "TA"]
[PlyCount "162"]
[EventDate "2022.09.21"]
[EventType "team-tourn"]
[EventCountry "ROU"]
[SourceTitle "playchess.com"]
[Source "ChessBase"]
[SourceQuality "1"]
[TimeControl "40/5400+30:1800+30"]

{[%evp 18,162,25,6,22,29,55,40,72,77,64,56,71,70,65,73,70,47,53,58,85,41,41,40,40,41,47,31,35,35,29,8,8,13,20,0,0,0,0,0,0,0,34,0,10,0,2,0,0,0,8,0,0,0,0,0,0,0,0,-66,-66,-66,0,0,0,-6,0,-66,-66,-66,-66,-66,-66,-73,-66,-66,-66,-80,-66,-66,-66,-66,-66,-66,-66,-93,-86,-97,-97,-97,-97,-97,-97,-83,-58,-58,-58,-58,-58,-65,-58,-66,-66,-66,-43,-44,0,-66,-58,-65,-58,-58,-58,-58,-58,-58,-58,-65,-58,-65,-58,-58,-58,-58,-58,-58,-8,-8,0,-58,0,-8,-8,-58,-8,-8,-8,-15,-15,-58,-15,-29,0,-58,0,-58,0]} 1. d4 {[%emt 0:00:01]} d5 {[%emt 0:00:09]} 2. c4 {[%emt 0:00:04]} c6 {[%emt 0:00:06]} 3. Nf3 {[%emt 0:00:05]} Nf6 {[%emt 0:00:06]} 4. Nc3 {[%emt 0:00:05]} e6 {[%emt 0:00:05]} 5. g3 {[%emt 0:00:07]} Nbd7 {[%emt 0:00:54]} 6. Qd3 {[%emt 0:01:32]} Be7 {[%emt 1:10:06]} 7. Bg2 {[%emt 0:00:43]} b6 {[%emt 0:00:33]} 8. O-O {[%emt 0:11:01]} O-O {[%emt 0:00:26]} 9. e4 {[%emt 0:00:30]} Ba6 {[%emt 0:05:17]} 10. b3 {[%emt 0:00:19]} c5 {[%emt 0:02:51] E07: Closed Catalan: Main Line (5 Nf3 0-0 6 0-0 Nbd7).} 11. exd5 {[%emt 0:18:28]} Nxd5 {[%emt 0:00:13] [#]} 12. Ne4 $146 {[%emt 0:11:08]} ({Predecessor:} 12. Nb5 Bxb5 13. cxb5 Bf6 14. Bb2 Rc8 15. Qe2 cxd4 16. Nxd4 Nc3 17. Bxc3 Rxc3 18. Nc6 {½-½ (49) Kukhmazov,A (2472)-Haznedaroglu,K (2442) Novi Sad 2022}) 12... Rc8 {[%emt 0:15:44] White is slightly better.} 13. Bb2 {[%emt 0:15:50]} ({Much weaker is} 13. Neg5 N5f6 $11) 13... N5f6 {[%emt 0:00:00]} 14. Rad1 {[%emt 0:11:27] White is more active.} Bb7 {[%emt 0:00:00]} 15. Nfg5 {[%emt 0:12:19]} Nxe4 {[%emt 0:00:27]} 16. Nxe4 {[%emt 0:00:31]} Bxe4 {[%emt 0:00:53]} 17. Qxe4 {[%emt 0:03:22] Threatens to win with d5.} Bf6 {[%emt 0:00:37] [#]} 18. dxc5 $1 {[%emt 0:08:01]} Nxc5 {[%emt 0:00:24]} (18... Bxb2 19. c6) 19. Qc2 {[%emt 0:02:48]} ({But not} 19. Rxd8 Nxe4 20. Rxf8+ Kxf8 $14) 19... Qe7 {[%emt 0:00:17]} 20. Bxf6 {[%emt 0:00:15]} gxf6 {[%emt 0:00:47]} 21. Rd4 {[%emt 0:01:25]} Rfd8 {[%emt 0:00:33]} 22. Rfd1 {[%emt 0:00:49]} Rxd4 {[%emt 0:00:27]} 23. Rxd4 {[%emt 0:00:01]} Rd8 {[%emt 0:00:12]} 24. Qd1 {[%emt 0:00:40]} Rxd4 {[%emt 0:00:12]} 25. Qxd4 $11 {[%emt 0:00:01][%mdl 4096] Endgame KQB-KQN} a5 {[%emt 0:00:38]} 26. h4 {[%emt 0:00:32]} Kg7 {[%emt 0:00:58]} 27. Bc6 {[%emt 0:01:15]} Qc7 {[%emt 0:00:25]} 28. Bf3 {[%emt 0:00:16]} h6 {[%emt 0:00:36]} 29. Kg2 {[%emt 0:00:37]} Qd7 {[%emt 0:00:25]} 30. Qg4+ {[%emt 0:00:32]} Kh7 {[%emt 0:00:12]} 31. Qf4 {[%emt 0:00:07]} (31. Be4+ {keeps more tension.} f5 32. Bc2 Qd2 33. Qd1) 31... Qd8 {[%emt 0:00:45]} 32. Be4+ {[%emt 0:00:49]} f5 {[%emt 0:00:38]} 33. Bc2 {[%emt 0:00:22]} Kg7 {[%emt 0:00:21]} 34. a3 {[%emt 0:00:38]} Qf6 {[%emt 0:00:35]} 35. b4 {[%emt 0:00:35]} axb4 {[%emt 0:00:07]} 36. axb4 {[%emt 0:00:05]} Na6 {[%emt 0:00:20]} 37. c5 {[%emt 0:01:07]} Qc3 {[%emt 0:00:57]} 38. Bd1 {[%emt 0:00:32]} (38. cxb6 $11 Qc6+ 39. Kg1 Qxc2 40. b7) 38... Nxb4 $15 {[%emt 0:00:34]} 39. cxb6 {[%emt 0:00:11] [#] Bf3 is the strong threat.} Qc6+ {[%emt 0:00:04]} (39... Nd5 $1 $15 40. Qb8 Qc6) 40. Bf3 $11 {[%emt 0:00:00]} Qxb6 {[%emt 0:00:00]} 41. Qe5+ $1 {[%emt 0:03:56]} Kg8 {[%emt 0:00:43][%cal Ob6f2] aiming for ...Qxf2+!} 42. Qc3 {[%emt 0:02:02]} (42. Qf6 $1 $11) 42... Qd6 $15 {[%emt 0:12:29]} 43. Qf6 {[%emt 0:03:32]} Qf8 {[%emt 0:00:07]} 44. Qd4 {[%emt 0:00:41]} Na6 {[%emt 0:01:34]} 45. Bc6 {[%emt 0:05:29]} Qc5 {[%emt 0:07:54]} 46. Qxc5 {[%emt 0:05:21]} Nxc5 {[%emt 0:00:06] KB-KN} 47. Kf3 {[%emt 0:00:06]} Nd3 {[%emt 0:06:37] White must now prevent ...Ne5+.} 48. Bb5 {[%emt 0:00:52]} Ne5+ {[%emt 0:00:07]} 49. Kf4 {[%emt 0:00:03]} Ng6+ {[%emt 0:00:15]} 50. Ke3 {[%emt 0:00:09]} Kg7 {[%emt 0:01:21]} 51. Kf3 {[%emt 0:01:47]} Kf6 {[%emt 0:00:11]} 52. Be8 {[%emt 0:00:05]} Ke7 {[%emt 0:01:44]} 53. Bb5 {[%emt 0:00:34]} Kd6 {[%emt 0:00:08]} 54. Be8 {[%emt 0:00:11]} Ne5+ {[%emt 0:00:27]} 55. Ke2 {[%emt 0:00:10]} f6 {[%emt 0:01:07]} 56. Ba4 {[%emt 0:00:23]} Nc6 {[%emt 0:02:57]} 57. Ke3 {[%emt 0:01:18]} Nb4 {[%emt 0:01:18]} 58. Kf3 {[%emt 0:01:00]} Ke5 {[%emt 0:00:15]} 59. Ke3 {[%emt 0:01:54]} Nd5+ {[%emt 0:00:13]} 60. Kf3 $1 {[%emt 0:00:17]} Kd4 {[%emt 0:01:20] Strongly threatening ...e5.} 61. Bd7 {[%emt 0:00:44]} Ke5 {[%emt 0:00:08]} 62. Ba4 $1 {[%emt 0:00:44]} Nc3 {[%emt 0:00:45]} 63. Bd7 {[%emt 0:00:34]} Ne4 {[%emt 0:00:11]} 64. Ke3 {[%emt 0:01:08]} Nc5 {[%emt 0:00:33]} 65. Be8 {[%emt 0:01:52]} Nb3 {[%emt 0:00:55]} 66. Ba4 {[%emt 0:01:20]} Nd4 {[%emt 0:00:26]} 67. Be8 {[%emt 0:02:04]} Kd5 {[%emt 0:00:35]} 68. Bf7 {[%emt 0:00:10]} Kc5 {[%emt 0:00:28]} 69. Bg8 {[%emt 0:01:51]} e5 {[%emt 0:00:17]} 70. Bh7 {[%emt 0:00:16]} Kc4 {[%emt 0:00:43]} 71. Bg8+ {[%emt 0:00:08]} Kc3 {[%emt 0:00:24]} (71... Kb5 $15) 72. Bh7 $1 $11 {[%emt 0:00:01]} Kc4 {[%emt 0:00:34]} (72... Kb4 $11) 73. Bg8+ $1 $15 {[%emt 0:00:01]} Kc3 {[%emt 0:00:08]} ({Black should try} 73... Kb4 $15) 74. Bh7 $1 $11 {[%emt 0:00:03]} Kb4 {[%emt 0:00:51]} 75. Bg8 {[%emt 0:00:25]} ({White should play} 75. Kd3 $1 $11) 75... Nb5 {[%emt 0:00:40]} (75... Kb5 $15) 76. Bh7 {[%emt 0:01:40]} Nd6 {[%emt 0:00:13]} 77. Kd3 {[%emt 0:00:08]} Kc5 {[%emt 0:00:46]} 78. Bg8 {[%emt 0:00:34]} Kb5 {[%emt 0:00:28]} 79. Be6 {[%emt 0:00:21]} Kc5 {[%emt 0:00:16]} 80. Bg8 {[%emt 0:00:05]} Kb5 {[%emt 0:00:34]} 81. Be6 {[%emt 0:00:15]} Kc5 {[%emt 0:01:18] Weighted Error Value: White=0.09 (flawless) /Black=0.06 (flawless)} (81... Kc6 $1 $15) 1/2-1/2